fUST/lending_fUST_20260420
["ID","MTS","AMOUNT","RATE_DAILY","PERIOD"]
[420882733,1776696653815,-1505.97,0.00015342,2]
[420882734,1776696653824,-1661.78,0.00015342,2]
[420882735,1776696653834,-1009.93,0.00015342,2]
[420882736,1776696653843,-531.0,0.00015342,2]
[420882737,1776696653853,-627.54,0.00015342,2]
[420882738,1776696653863,-500.0,0.00015342,2]
[420882739,1776696653873,-539.83,0.00015342,2]
[420882740,1776696653882,-743.11,0.00015342,2]
[420882741,1776696653892,-2073.43,0.00015342,2]
[420882742,1776696653901,-554.89,0.00015342,2]
[420882743,1776696653910,-582.62,0.00015342,2]
[420882744,1776696653920,-500.0,0.00015342,2]
[420882745,1776696653930,-2908.99,0.00015342,2]
[420882746,1776696653939,-500.0,0.00015342,2]
[420882747,1776696653950,-701.99,0.00015342,2]
[420882748,1776696653960,-1141.9,0.00015342,2]
[420882749,1776696653969,-1249.46,0.00015342,2]
[420882750,1776696653979,-707.82,0.00015342,2]
[420882751,1776696653988,-7036.91,0.00015342,2]
[420882752,1776696653998,-2377.27,0.00015342,2]
[420882753,1776696654007,-875.64,0.00015342,2]
[420882754,1776696654016,-6048.3,0.00015342,2]
[420882755,1776696654026,-1882.47,0.00015342,2]
[420882756,1776696654036,-214.09607152,0.00015342,2]
[420882757,1776696654045,-3034.32,0.00015342,2]
[420882758,1776696654055,-500.0,0.00015342,2]
[420882759,1776696654064,-818.65,0.00015342,2]
[420882760,1776696654074,-699.34,0.00015342,2]
[420882761,1776696654083,-3464.74,0.00015342,2]
[420882762,1776696654092,-4871.73,0.00015342,2]
[420882763,1776696654101,-6287.28,0.00015342,2]
[420882764,1776696654110,-408.37946862,0.00015342,2]
[420882765,1776696654119,-890.69,0.00015342,2]
[420882766,1776696654128,-500.0,0.00015342,2]
[420882767,1776696654137,-500.0,0.00015342,2]
[420882768,1776696654148,-5009.47,0.00015342,2]
[420882769,1776696654157,-500.0,0.00015342,2]
[420882770,1776696654167,-15915.66,0.00015342,2]
[420882771,1776696654176,-4884.2,0.00015342,2]
[420882772,1776696654187,-500.0,0.00015342,2]
[420882773,1776696654197,-10006.4,0.00015342,2]
[420882774,1776696654207,-4637.64,0.00015342,2]
[420882775,1776696654216,-500.0,0.00015342,2]
[420882776,1776696654226,-500.0,0.00015342,2]
[420882777,1776696654235,-730.92,0.00015342,2]
[420882778,1776696654245,-1363.78,0.00015342,2]
[420882779,1776696654254,-500.0,0.00015342,2]
[420882780,1776696654263,-3657.71,0.00015342,2]
[420882781,1776696654273,-2485.21,0.00015342,2]
[420882782,1776696654282,-1206.45,0.00015342,2]
[420882783,1776696654292,-15895.85,0.00015342,2]
[420882784,1776696654301,-500.0,0.00015342,2]
[420882785,1776696654310,-500.0,0.00015342,2]
[420882786,1776696654320,-1632.78,0.00015342,2]
[420882787,1776696654329,-11810.45,0.00015342,2]
[420882788,1776696654339,-1190.0,0.00015342,2]
[420882789,1776696654348,-1908.279365,0.00015348,2]
[420882790,1776696654358,-1500.0,0.00015368,2]
[420882791,1776696654367,-1500.0,0.00015368,2]
[420882792,1776696654376,-1500.0,0.00015368,2]
[420882793,1776696654386,-1000.0,0.00015371,2]
[420882794,1776696654395,-1000.0,0.00015371,2]
[420882795,1776696654405,-1000.0,0.00015371,2]
[420882796,1776696654414,-325.0355322,0.00015372,2]
[420882797,1776696654423,-2487.15318209,0.00015381,2]
[420882798,1776696654432,-151.0,0.000154,3]
[420882799,1776696654441,-1322.16,0.00015563,2]
[420882800,1776696654451,-160.0,0.00015572,7]
[420882801,1776696654460,-1467.906718,0.00015572,7]
[420882802,1776696654470,-2775.813437,0.00015572,7]
[420882803,1776696654478,-633.4402,0.00015616,2]
[420882804,1776696654488,-500.0,0.00015616,2]
[420882805,1776696654497,-610.26,0.00015616,2]
[420882806,1776696654506,-602.11,0.00015616,2]
[420882807,1776696654515,-500.0,0.00015616,2]
[420882808,1776696654525,-956.57,0.00015616,2]
[420882809,1776696654534,-630.47,0.00015616,2]
[420882810,1776696654543,-500.0,0.00015616,2]
[420882811,1776696654553,-500.0,0.00015616,2]
[420882812,1776696654563,-532.09,0.00015616,2]
[420882813,1776696654572,-622.23,0.00015616,2]
[420882814,1776696654581,-500.0,0.00015616,2]
[420882815,1776696654591,-500.0,0.00015616,2]
[420882816,1776696654600,-704.3,0.00015616,2]
[420882817,1776696654609,-690.29,0.00015616,2]
[420882818,1776696654619,-789.51,0.00015616,2]
[420882819,1776696654628,-515.0,0.00015616,2]
[420882820,1776696654637,-930.35,0.00015616,2]
[420882821,1776696654646,-832.46,0.00015616,2]
[420882822,1776696654655,-955.21,0.00015616,2]
[420882823,1776696654664,-726.69,0.00015616,2]
[420882824,1776696654674,-517.82,0.00015616,2]
[420882825,1776696654684,-500.0,0.00015616,2]
[420882826,1776696654693,-1042.5,0.00015616,2]
[420882827,1776696654702,-565.17,0.00015616,2]
[420882828,1776696654712,-1002.87,0.00015616,2]
[420882829,1776696654721,-474.56330092,0.00015616,2]
[420882830,1776696654731,-500.0,0.00015616,2]
[420882831,1776696654740,-3024.12,0.00015616,2]
[420882832,1776696654749,-818.35,0.00015616,2]
[420882833,1776696654758,-866.55,0.00015616,2]
[420882834,1776696654768,-500.0,0.00015616,2]
[420882835,1776696654778,-587.08,0.00015616,2]
[420882836,1776696654787,-500.0,0.00015616,2]
[420882837,1776696654796,-500.0,0.00015616,2]
[420882838,1776696654805,-543.95,0.00015616,2]
[420882839,1776696654815,-1768.45,0.00015616,2]
[420882840,1776696654824,-500.0,0.00015616,2]
[420882841,1776696654833,-591.8,0.00015616,2]
[420882842,1776696654843,-822.54,0.00015616,2]
[420882843,1776696654852,-500.0,0.00015616,2]
[420882844,1776696654863,-963.63,0.00015616,2]
[420882845,1776696654873,-500.0,0.00015616,2]
[420882846,1776696654883,-500.0,0.00015616,2]
[420882847,1776696654892,-500.0,0.00015616,2]
[420882848,1776696654901,-500.0,0.00015616,2]
[420882849,1776696654911,-500.0,0.00015616,2]
[420882850,1776696654920,-754.0,0.00015616,2]
[420882851,1776696654930,-550.65,0.00015616,2]
[420882852,1776696654939,-1156.48,0.00015616,2]
[420882853,1776696654948,-500.0,0.00015616,2]
[420882854,1776696654958,-283.72966061,0.00015616,2]
[420882855,1776696654968,-1510.15,0.00015616,2]
[420882856,1776696654978,-500.0,0.00015616,2]
[420882857,1776696654987,-1473.14,0.00015616,2]
[420882858,1776696654996,-500.0,0.00015616,2]
[420882859,1776696655006,-1885.11,0.00015616,2]
[420882860,1776696655016,-500.0,0.00015616,2]
[420882861,1776696655025,-609.17,0.00015616,2]
[420882862,1776696655035,-828.28,0.00015616,2]
[420882863,1776696655044,-500.0,0.00015616,2]
[420882864,1776696655054,-968.9,0.00015616,2]
[420882865,1776696655063,-4271.56,0.00015616,2]
[420882866,1776696655072,-844.7,0.00015616,2]
[420882867,1776696655082,-7286.0,0.00015616,2]
[420882868,1776696655091,-500.0,0.00015616,2]
[420882869,1776696655100,-852.55,0.00015616,2]
[420882870,1776696655110,-1256.17,0.00015616,2]
[420882871,1776696655119,-500.0,0.00015616,2]
[420882872,1776696655129,-500.0,0.00015616,2]
[420882873,1776696655138,-3573.36,0.00015616,2]
[420882874,1776696655148,-4539.58,0.00015616,2]
[420882875,1776696655157,-2069.57,0.00015616,2]
[420882876,1776696655167,-6344.31,0.00015616,2]
[420882877,1776696655176,-830.25,0.00015616,2]
[420882878,1776696655185,-7592.59,0.00015616,2]
[420882879,1776696655195,-676.3,0.00015616,2]
[420882880,1776696655204,-1056.46,0.00015616,2]
[420882881,1776696655213,-644.42,0.00015616,2]
[420882882,1776696655222,-996.3,0.00015616,2]
[420882883,1776696655232,-3326.62,0.00015616,2]
[420882884,1776696655241,-500.0,0.00015616,2]
[420882885,1776696655250,-8381.55375499,0.00015616,2]
[420882886,1776696655451,-2925.52624501,0.00015616,2]
[420882887,1776696655461,-947.12,0.00015616,2]
[420882888,1776696655470,-1605.17,0.00015616,2]
[420882889,1776696655480,-397.29378044,0.00015616,2]
[420882890,1776696655803,-0.69973011,0.00014246,2]
[420882891,1776696655947,-499.30026989,0.00014246,2]
[420882892,1776696655957,-500.0,0.0001452,2]
[420882893,1776696655967,-500.0,0.00014794,2]
[420882894,1776696655977,-1632.29,0.00014794,2]
[420882895,1776696655986,-500.0,0.00015068,2]
[420882896,1776696655995,-1490.03706568,0.00015068,2]
[420882897,1776696656007,-142.25293432,0.00015068,2]
[420882898,1776696656016,-500.0,0.00015342,2]
[420882899,1776696656026,-279.74956568,0.00015342,2]
[420882900,1776696656175,-1352.54043432,0.00015342,2]
[420882901,1776696656185,-472.18621956,0.00015616,2]
[420882902,1776696656194,-685.66,0.00015616,2]
[420882903,1776696656204,-2903.7,0.00015616,2]
[420882904,1776696656213,-500.0,0.00015616,2]
[420882905,1776696656223,-299.29981292,0.00015616,2]
[420882906,1776696656232,-613.26,0.00015616,2]
[420882907,1776696656241,-500.0,0.00015616,2]
[420882908,1776696656250,-484.98947285,0.00015616,2]
[420882918,1776697281207,-3816.82445402,9.801e-05,2]
[420882932,1776697557496,1174.19056607,0.00011,30]
[420882935,1776697751141,-5000.0,9.415e-05,2]
[420882936,1776697751164,-150.0,9.463e-05,2]
[420882937,1776697751186,-3884.6563,9.51e-05,2]
[420882938,1776697751207,-300.0,9.681e-05,2]
[420882939,1776697751228,-1200.0,9.682e-05,2]
[420882940,1776697751252,-3046.61671279,9.683e-05,2]
[420882941,1776697751275,-644.86191666,9.683e-05,2]
[420882942,1776697751298,-6496.42370781,9.783e-05,2]
[420882981,1776697833026,-1022.16266685,9.783e-05,2]
[420882982,1776697833035,-1210.10130797,9.783e-05,2]
[420882983,1776697833045,-300.0,9.882e-05,2]
[420882984,1776697833054,-9467.79272852,9.883e-05,2]
[420882985,1776697833064,-1775.34069928,9.883e-05,2]
[420882986,1776697833074,-11990.55603652,9.983e-05,2]
[420882987,1776697833083,-2029.64329117,9.983e-05,2]
[420882989,1776697833093,-500.0,9.998e-05,2]
[420882990,1776697833102,-500.0,9.998e-05,2]
[420882992,1776697833112,-500.0,9.998e-05,2]
[420882994,1776697833121,-500.0,9.998e-05,2]
[420882996,1776697833131,-500.0,9.998e-05,2]
[420882998,1776697833140,-500.0,9.998e-05,2]
[420883000,1776697833150,-500.0,9.998e-05,2]
[420883002,1776697833159,-500.0,9.998e-05,2]
[420883003,1776697833169,-500.0,9.998e-05,2]
[420883006,1776697833178,-241.5048326,9.998e-05,2]
[420883007,1776697833187,-500.0,9.998e-05,2]
[420883009,1776697833196,-500.0,9.998e-05,2]
[420883011,1776697833206,-500.0,9.998e-05,2]
[420883013,1776697833215,-500.0,9.998e-05,2]
[420883016,1776697833225,-500.0,9.998e-05,2]
[420883018,1776697833235,-500.0,9.998e-05,2]
[420883019,1776697833246,-500.0,9.998e-05,2]
[420883021,1776697833255,-500.0,9.998e-05,2]
[420883023,1776697833265,-500.0,9.998e-05,2]
[420883025,1776697833274,-500.0,9.998e-05,2]
[420883027,1776697833283,-500.0,9.998e-05,2]
[420883029,1776697833292,-500.0,9.998e-05,2]
[420883031,1776697833302,-500.0,9.998e-05,2]
[420883032,1776697833312,-500.0,9.998e-05,2]
[420883033,1776697833322,-500.0,9.998e-05,2]
[420883034,1776697833331,-500.0,9.998e-05,2]
[420883035,1776697833341,-500.0,9.998e-05,2]
[420883036,1776697833351,-500.0,9.998e-05,2]
[420883037,1776697833361,-500.0,9.998e-05,2]
[420883038,1776697833370,-500.0,9.998e-05,2]
[420883039,1776697833379,-500.0,9.998e-05,2]
[420883040,1776697833389,-500.0,9.998e-05,2]
[420883041,1776697833398,-500.0,9.998e-05,2]
[420883042,1776697833408,-500.0,9.998e-05,2]
[420883043,1776697833417,-500.0,9.998e-05,2]
[420883044,1776697833427,-500.0,9.998e-05,2]
[420883045,1776697833436,-500.0,9.998e-05,2]
[420883046,1776697833445,-500.0,9.998e-05,2]
[420883047,1776697833455,-500.0,9.998e-05,2]
[420883048,1776697833464,-412.55105841,9.998e-05,2]
[420883049,1776697833474,-500.0,9.998e-05,2]
[420883050,1776697833483,-500.0,9.998e-05,2]
[420883051,1776697833493,-314.34178868,9.998e-05,2]
[420883052,1776697833502,-500.0,9.998e-05,2]
[420883053,1776697833511,-500.0,9.998e-05,2]
[420883054,1776697833521,-500.0,9.998e-05,2]
[420883055,1776697833530,-500.0,9.998e-05,2]
[420883056,1776697833540,-500.0,9.998e-05,2]
[420883057,1776697833549,-500.0,9.998e-05,2]
[420883058,1776697833559,-500.0,9.998e-05,2]
[420883059,1776697833569,-500.0,9.998e-05,2]
[420883060,1776697833578,-500.0,9.998e-05,2]
[420883061,1776697833588,-588.57746103,9.998e-05,2]
[420883062,1776697833597,-500.0,9.998e-05,2]
[420883063,1776697833607,-500.0,9.998e-05,2]
[420883064,1776697833617,-500.0,9.998e-05,2]
[420883065,1776697833626,-500.0,9.998e-05,2]
[420883066,1776697833636,-500.0,9.998e-05,2]
[420883067,1776697833646,-500.0,9.998e-05,2]
[420883068,1776697833656,-500.0,9.998e-05,2]
[420883069,1776697833665,-500.0,9.998e-05,2]
[420883070,1776697833675,-500.0,9.998e-05,2]
[420883071,1776697833684,-500.0,9.998e-05,2]
[420883072,1776697833693,-500.0,9.998e-05,2]
[420883073,1776697833703,-500.0,9.998e-05,2]
[420883074,1776697833712,-300.0,9.998e-05,2]
[420883075,1776697833722,-338.12043114,9.998e-05,2]
[420883076,1776697833732,-500.0,9.999e-05,2]
[420883077,1776697833741,-2135.10688315,0.0001,2]
[420883078,1776697833751,-7808.34560131,0.0001,2]
[420883079,1776697833760,-291.81542188,0.0001,2]
[420883080,1776697833770,-580.08449639,0.0001,2]
[420883081,1776697833779,-24000.0,0.0001,2]
[420883082,1776697833788,-293.50737317,0.0001,2]
[420883086,1776697839303,-381.64750704,0.0001,2]
[420883087,1776697839312,-249.709,0.0001,2]
[420883088,1776697839322,-336.26735664,0.0001,3]
[420883089,1776697839360,-547.48260535,0.0001,3]
[420883090,1776697839370,-12214.08953261,0.00010083,2]
[420883091,1776697839380,-2340.58009058,0.00010083,2]
[420883092,1776697839391,-500.0,0.00010182,2]
[420883093,1776697839401,-208.33355468,0.00010182,2]
[420883094,1776697839411,-203.10072572,0.00010182,2]
[420883095,1776697839421,-14960.38633678,0.00010183,2]
[420883096,1776697839430,-2393.91487915,0.00010183,2]
[420883097,1776697839439,-500.0,0.00010273,2]
[420883098,1776697839448,-16462.52569839,0.00010283,2]
[420883099,1776697839458,-2758.18646725,0.00010283,2]
[420883100,1776697839467,-5771.47934496,0.00010383,2]
[420883101,1776697839486,-3987.56712232,0.00010383,2]
[420883102,1776697839498,-4263.51282528,0.00010383,2]
[420883103,1776697839509,-3684.12384839,0.00010383,2]
[420883104,1776697839518,-250.0,0.00010411,2]
[420883105,1776697839528,-159.79546257,0.00010432,2]
[420883106,1776697839537,-693.0937291,0.00010459,2]
[420883107,1776697839546,-77.69042291,0.00010483,2]
[420883108,1776697839561,-20139.5308122,0.00010483,2]
[420883109,1776697839571,-2905.81948189,0.00010488,2]
[420883110,1776697839580,-500.0,0.00010547,2]
[420883111,1776697839590,-300.0,0.0001058,2]
[420883112,1776697839599,-300.0,0.0001058,2]
[420883113,1776697839608,-300.0,0.0001058,2]
[420883114,1776697839617,-300.0,0.0001058,2]
[420883115,1776697839626,-300.0,0.0001058,2]
[420883116,1776697839635,-300.0,0.0001058,2]
[420883117,1776697839645,-300.0,0.0001058,2]
[420883118,1776697839654,-300.0,0.0001058,2]
[420883119,1776697839664,-300.0,0.0001058,2]
[420883120,1776697839674,-300.0,0.0001058,2]
[420883121,1776697839684,-300.0,0.0001058,2]
[420883122,1776697839693,-300.0,0.0001058,2]
[420883123,1776697839703,-300.0,0.0001058,2]
[420883124,1776697839712,-300.0,0.0001058,2]
[420883125,1776697839721,-300.0,0.0001058,2]
[420883126,1776697839730,-428.45428438,0.00010618,2]
[420883127,1776697839739,-420.0,0.0001087,2]
[420883128,1776697839749,-1575.0,0.00010959,2]
[420883129,1776697839758,-500.0,0.00010959,2]
[420883130,1776697839768,-500.0,0.00010959,2]
[420883131,1776697839777,-500.0,0.00010959,2]
[420883132,1776697839788,-500.0,0.00010959,2]
[420883133,1776697839797,-500.0,0.00010959,2]
[420883134,1776697839806,-500.0,0.00010959,2]
[420883135,1776697839816,-500.0,0.00010959,2]
[420883136,1776697839826,-300.0,0.00010959,2]
[420883137,1776697839835,-500.0,0.00010959,2]
[420883138,1776697839845,-500.0,0.00010959,2]
[420883139,1776697839854,-500.0,0.00010959,2]
[420883140,1776697839863,-500.0,0.00010959,2]
[420883141,1776697839873,-500.0,0.00010959,2]
[420883142,1776697839883,-500.0,0.00010959,2]
[420883143,1776697839892,-500.0,0.00010959,2]
[420883144,1776697839902,-500.0,0.00010959,2]
[420883145,1776697839912,-500.0,0.00010959,2]
[420883146,1776697839925,-500.0,0.00010959,2]
[420883147,1776697839935,-500.0,0.00010959,2]
[420883148,1776697839945,-500.0,0.00010959,2]
[420883149,1776697839955,-500.0,0.00010959,2]
[420883150,1776697839964,-461.78355066,0.00010959,2]
[420883151,1776697839974,-500.0,0.00010959,2]
[420883152,1776697839983,-300.0,0.00010959,2]
[420883153,1776697839994,-500.0,0.00010959,2]
[420883154,1776697840003,-500.0,0.00010959,2]
[420883155,1776697840012,-500.0,0.00010959,2]
[420883156,1776697840022,-500.0,0.00010959,2]
[420883157,1776697840032,-500.0,0.00010959,2]
[420883158,1776697840041,-500.0,0.00010959,2]
[420883159,1776697840051,-150.0,0.0001096,2]
[420883160,1776697840060,-159.79546257,0.00010963,2]
[420883161,1776697840070,-1547.57,0.00010965,2]
[420883162,1776697840079,-1823.63,0.00010981,2]
[420883163,1776697840088,-150.0,0.0001126,2]
[420883164,1776697840098,-3122.45805534,0.00011272,2]
[420883166,1776697840107,-177.0,0.00011463,2]
[420883168,1776697840116,-159.79546257,0.00011495,2]
[420883169,1776697840126,-150.0,0.0001156,2]
[420883170,1776697840135,-150.0,0.0001186,2]
[420883171,1776697840144,-158.04,0.0001186,2]
[420883172,1776697840154,-587.0,0.00011957,2]
[420883173,1776697840163,-42207.35106835,0.00012024,2]
[420883174,1776697840175,-159.79546257,0.00012026,2]
[420883175,1776697840184,-3657.94414227,0.00012054,2]
[420883176,1776697840199,-3471.0588732,0.00012056,2]
[420883177,1776697840208,-180.0,0.00012118,2]
[420883178,1776697840218,-151.0,0.00012118,2]
[420883179,1776697840227,-151.0,0.00012118,2]
[420883180,1776697840236,-151.0,0.00012118,2]
[420883181,1776697840245,-151.0,0.00012118,2]
[420883182,1776697840255,-151.0,0.00012118,2]
[420883183,1776697840264,-151.0,0.00012118,2]
[420883186,1776697840458,-151.0,0.00012118,2]
[420883188,1776697840468,-151.0,0.00012118,2]
[420883189,1776697840478,-151.0,0.00012118,2]
[420883190,1776697840487,-151.0,0.00012118,2]
[420883191,1776697840496,-151.0,0.00012118,2]
[420883192,1776697840506,-151.0,0.00012118,2]
[420883193,1776697840515,-151.0,0.00012118,2]
[420883194,1776697840524,-151.0,0.00012118,2]
[420883195,1776697840533,-151.0,0.00012118,2]
[420883196,1776697840542,-151.0,0.00012118,2]
[420883197,1776697840551,-151.0,0.00012118,2]
[420883198,1776697840561,-151.0,0.00012118,2]
[420883199,1776697840570,-151.0,0.00012118,2]
[420883200,1776697840579,-151.0,0.00012118,2]
[420883201,1776697840589,-557823.50673903,0.00012126,2]
[420883202,1776697840797,-1090012.95744741,0.00012126,2]
[420883203,1776697840808,-20454.2081848,0.00012154,2]
[420883204,1776697840817,-150.0,0.0001216,2]
[420883205,1776697840827,-500.0,0.00012172,2]
[420883206,1776697840836,-500.0,0.00012173,2]
[420883207,1776697840845,-500.0,0.00012173,2]
[420883208,1776697840854,-500.0,0.00012173,2]
[420883209,1776697840864,-151.0,0.000122,2]
[420883210,1776697840873,-151.0,0.000122,2]
[420883211,1776697840882,-151.0,0.000122,2]
[420883212,1776697840892,-151.0,0.000122,2]
[420883213,1776697840901,-151.0,0.000122,2]
[420883214,1776697840911,-151.0,0.000122,2]
[420883215,1776697840920,-151.0,0.000122,2]
[420883216,1776697840929,-151.0,0.000122,2]
[420883217,1776697840938,-151.0,0.000122,2]
[420883218,1776697840947,-151.0,0.000122,2]
[420883219,1776697840956,-151.0,0.000122,2]
[420883220,1776697840966,-151.0,0.000122,2]
[420883221,1776697840976,-151.0,0.000122,2]
[420883222,1776697840985,-397.4,0.00012329,2]
[420883223,1776697840994,-331.17,0.00012329,2]
[420883224,1776697841004,-275.98,0.00012329,2]
[420883225,1776697841013,-229.98,0.00012329,2]
[420883226,1776697841023,-191.65,0.00012329,2]
[420883227,1776697841032,-159.71,0.00012329,2]
[420883228,1776697841041,-798.56,0.00012329,2]
[420883229,1776697841051,-600.0,0.00012443,2]
[420883230,1776697841060,-150.0,0.0001246,2]
[420883231,1776697841069,-11770.58389607,0.000125,2]
[420883232,1776697841078,-192.51964706,0.00012603,2]
[420883233,1776697841087,-258.62364883,0.00012688,2]
[420883234,1776697841096,-1000.0,0.00012721,2]
[420883235,1776697841106,-1000.0,0.00012721,2]
[420883236,1776697841115,-1000.0,0.00012721,2]
[420883237,1776697841124,-150.0,0.0001276,2]
[420883238,1776697841133,-237.06,0.0001276,2]
[420883239,1776697841142,-197.55,0.0001276,2]
[420883240,1776697841150,-217.31,0.0001276,2]
[420883241,1776697841159,-207.43,0.0001276,2]
[420883242,1776697841168,-3486.72964344,0.0001284,2]
[420883243,1776697841178,-192.51964706,0.00012855,7]
[420883244,1776697841187,-158.67817214,0.000129,2]
[420883245,1776697841196,-158.67817209,0.000129,2]
[420883246,1776697841204,-250.0,0.00012927,2]
[420883247,1776697841214,-166.08,0.0001306,2]
[420883248,1776697841223,-394.0,0.00013153,2]
[420883249,1776697841232,-158.67817209,0.00013155,2]
[420883250,1776697841241,-192.51964706,0.00013233,14]
[420883251,1776697841250,-1500.0,0.00013268,2]
[420883252,1776697841260,-1500.0,0.00013268,2]
[420883253,1776697841269,-1500.0,0.00013268,2]
[420883254,1776697841278,-204.0,0.00013463,2]
[420883255,1776697841288,-200.28878905,0.00013602,2]
[420883256,1776697841297,-537.6845,0.00013602,2]
[420883257,1776697841306,-461.67526834,0.00013602,2]
[420883258,1776697841316,-537.6845,0.00013602,2]
[420883260,1776697841325,-151.0,0.00013602,2]
[420883261,1776697841334,-2150.738,0.00013602,2]
[420883263,1776697841343,-3851.22512559,0.00013624,2]
[420883264,1776697841352,-557.5788265,0.00013657,2]
[420883265,1776697841361,-720.0,0.00013687,2]
[420883266,1776697841371,-160.0,0.00013693,2]
[420883268,1776697841380,-296.770914,0.00013693,2]
[420883269,1776697841389,-433.541828,0.00013693,2]
[420883270,1776697841399,-500.0,0.00013698,2]
[420883271,1776697841408,-577.7,0.00013698,2]
[420883272,1776697841418,-554.97,0.00013698,2]
[420883273,1776697841427,-500.0,0.00013698,2]
[420883274,1776697841437,-500.0,0.00013698,2]
[420883275,1776697841447,-1178.96,0.00013698,2]
[420883276,1776697841456,-500.0,0.00013698,2]
[420883277,1776697841466,-500.0,0.00013698,2]
[420883278,1776697841476,-500.0,0.00013698,2]
[420883279,1776697841485,-500.0,0.00013698,2]
[420883280,1776697841494,-500.0,0.00013698,2]
[420883281,1776697841504,-668.58,0.00013698,2]
[420883282,1776697841513,-500.0,0.00013698,2]
[420883283,1776697841523,-642.42,0.00013698,2]
[420883284,1776697841532,-500.0,0.00013698,2]
[420883285,1776697841541,-500.0,0.00013698,2]
[420883286,1776697841551,-500.0,0.00013698,2]
[420883287,1776697841560,-500.0,0.00013698,2]
[420883288,1776697841570,-563.13,0.00013698,2]
[420883289,1776697841579,-645.93,0.00013698,2]
[420883290,1776697841588,-568.36,0.00013698,2]
[420883291,1776697841598,-502.66,0.00013698,2]
[420883292,1776697841607,-500.0,0.00013698,2]
[420883293,1776697841616,-553.5,0.00013698,2]
[420883294,1776697841626,-620.23,0.00013698,2]
[420883295,1776697841635,-500.0,0.00013698,2]
[420883296,1776697841644,-631.41,0.00013698,2]
[420883297,1776697841653,-500.0,0.00013698,2]
[420883298,1776697841662,-552.19,0.00013698,2]
[420883299,1776697841672,-500.0,0.00013698,2]
[420883300,1776697841681,-776.9,0.00013698,2]
[420883301,1776697841690,-664.2,0.00013698,2]
[420883302,1776697841699,-1848.07,0.00013698,2]
[420883303,1776697841708,-500.0,0.00013698,2]
[420883304,1776697841717,-500.0,0.00013698,2]
[420883305,1776697841726,-500.0,0.00013698,2]
[420883306,1776697841735,-500.0,0.00013698,2]
[420883307,1776697841745,-548.36,0.00013698,2]
[420883308,1776697841754,-500.0,0.00013698,2]
[420883309,1776697841763,-500.0,0.00013698,2]
[420883310,1776697841773,-500.0,0.00013698,2]
[420883311,1776697841782,-500.0,0.00013698,2]
[420883312,1776697841791,-500.0,0.00013698,2]
[420883314,1776697841800,-500.0,0.00013698,2]
[420883316,1776697841809,-500.0,0.00013698,2]
[420883317,1776697841818,-545.57,0.00013698,2]
[420883319,1776697841828,-500.0,0.00013698,2]
[420883321,1776697841837,-500.0,0.00013698,2]
[420883322,1776697841845,-500.0,0.00013698,2]
[420883323,1776697841854,-500.0,0.00013698,2]
[420883324,1776697841863,-500.0,0.00013698,2]
[420883325,1776697841872,-500.0,0.00013698,2]
[420883326,1776697841881,-500.0,0.00013698,2]
[420883328,1776697841890,-982.1,0.00013698,2]
[420883329,1776697841900,-500.0,0.00013698,2]
[420883331,1776697841909,-1263.53,0.00013698,2]
[420883332,1776697841918,-597.18968103,0.00013698,2]